bitfinex/quotes_BTCUSD_20250826
["timestamp","ask_amount","ask_price","bid_price","bid_amount"]
[1756204217387,0.45094748,110560.0,110550.0,0.36735261]
[1756204218614,0.45094748,110560.0,110550.0,0.21519261]
[1756204218875,0.45094748,110560.0,110550.0,0.36532261]
[1756204219104,0.45094748,110560.0,110550.0,0.36739261]
[1756204222128,4.758e-05,110560.0,110550.0,0.36739261]
[1756204222414,0.95094748,110560.0,110550.0,0.36739261]
[1756204222609,0.45094748,110560.0,110550.0,0.36739261]
[1756204222947,4.758e-05,110560.0,110550.0,0.36739261]
[1756204223139,5.15408548,110560.0,110550.0,0.36739261]
[1756204223325,0.45094748,110560.0,110550.0,0.36739261]
[1756204225852,0.45094748,110560.0,110550.0,0.21523261]
[1756204226076,0.45094748,110560.0,110550.0,0.36735261]
[1756204228184,0.45094748,110560.0,110550.0,0.21523261]
[1756204228357,1.08274463,110560.0,110550.0,0.36223261]
[1756204228949,4.758e-05,110560.0,110550.0,0.36223261]
[1756204229147,0.45094748,110560.0,110550.0,0.36748261]
[1756204229353,4.65408548,110560.0,110550.0,0.36748261]
[1756204229548,0.19929271,110570.0,110550.0,0.36748261]
[1756204229752,5.1540379,110560.0,110550.0,0.36748261]
[1756204229953,0.4508999,110560.0,110550.0,0.36748261]
[1756204230398,0.63179715,110560.0,110550.0,0.36548261]
[1756204230738,0.4508999,110560.0,110550.0,0.36548261]
[1756204231574,0.4508999,110560.0,110550.0,0.36648261]
[1756204232447,0.018411,110570.0,110560.0,0.18089725]
[1756204232662,4.6724489,110570.0,110560.0,0.18614725]
[1756204232868,4.6540379,110570.0,110560.0,0.18614725]
[1756204234075,4.67040719,110570.0,110560.0,0.18614725]
[1756204234290,0.70929802,110580.0,110570.0,0.18088088]
[1756204234497,5.42764658,110580.0,110570.0,0.33618088]
[1756204234705,5.27552658,110580.0,110570.0,0.33618088]
[1756204234914,5.42764658,110580.0,110570.0,0.33618088]
[1756204235731,5.4437791,110580.0,110570.0,0.33618088]
[1756204235858,5.4457791,110580.0,110570.0,0.33618088]
[1756204236451,5.4467791,110580.0,110570.0,0.33618088]
[1756204239646,5.4467791,110580.0,110570.0,0.33825088]
[1756204240246,4.90441718,110580.0,110570.0,0.33825088]
[1756204240447,5.16533806,110580.0,110570.0,0.33825088]
[1756204240653,4.56231816,110580.0,110570.0,0.33825088]
[1756204240847,4.54618564,110580.0,110570.0,0.33825088]
[1756204241048,0.34304764,110580.0,110570.0,0.78915078]
[1756204241674,0.34204764,110580.0,110570.0,0.78915078]
[1756204242212,0.34004764,110580.0,110570.0,0.78915078]
[1756204242420,0.34004764,110580.0,110570.0,0.33825088]
[1756204242620,0.97181207,110580.0,110570.0,0.18406088]
[1756204242816,0.97181207,110580.0,110570.0,0.33614088]
[1756204244022,0.79094754,110580.0,110570.0,0.33614088]
[1756204244359,0.79094754,110580.0,110570.0,0.33811088]
[1756204244757,1.24184744,110580.0,110570.0,0.33811088]
[1756204246007,0.34004764,110580.0,110570.0,0.33811088]
[1756204246219,0.79094754,110580.0,110570.0,0.33811088]
[1756204248027,4.764e-05,110580.0,110570.0,0.33811088]
[1756204248435,0.45094754,110580.0,110570.0,0.36530288]
[1756204248572,4.764e-05,110580.0,110570.0,0.36530288]
[1756204249569,4.764e-05,110580.0,110570.0,0.40647375]
[1756204249777,0.50004764,110580.0,110570.0,0.40647375]
[1756204249972,4.20318564,110580.0,110570.0,0.40747375]
[1756204250214,4.764e-05,110580.0,110570.0,0.40747375]
[1756204250429,4.764e-05,110580.0,110570.0,0.47703375]
[1756204250647,4.764e-05,110580.0,110570.0,0.47803375]
[1756204252395,4.764e-05,110580.0,110570.0,0.49395412]
[1756204253010,4.764e-05,110580.0,110570.0,0.94485402]
[1756204253434,4.764e-05,110580.0,110570.0,0.79277402]
[1756204253643,4.764e-05,110580.0,110570.0,0.94485402]
[1756204254256,4.764e-05,110580.0,110570.0,1.34485402]
[1756204256545,4.764e-05,110580.0,110570.0,1.34481402]
[1756204258654,4.764e-05,110580.0,110570.0,0.72595375]
[1756204258835,4.764e-05,110580.0,110570.0,1.32889365]
[1756204258982,4.764e-05,110580.0,110570.0,1.17685365]
[1756204259203,4.764e-05,110580.0,110570.0,0.87799375]
[1756204260821,0.45094754,110580.0,110570.0,0.498752]
[1756204261024,1.92820075,110580.0,110570.0,0.002]
[1756204261233,6.27671352,110580.0,110570.0,0.002]
[1756204261441,6.12629838,110580.0,110570.0,0.002]
[1756204261648,6.17301689,110580.0,110570.0,0.002]
[1756204263787,6.17301689,110580.0,110570.0,0.001]
[1756204264204,6.17401689,110580.0,110570.0,0.001]
[1756204264609,0.18091361,110550.0,110540.0,0.08004]
[1756204264825,0.78205589,110550.0,110540.0,0.00296]
[1756204265035,0.78205589,110550.0,110540.0,0.18585998]
[1756204266306,0.78205589,110550.0,110540.0,0.00493]
[1756204266693,0.78205589,110550.0,110540.0,0.00496]
[1756204266894,0.78205589,110550.0,110540.0,0.00596]
[1756204269119,0.79850074,110550.0,110540.0,0.00596]
[1756204269322,0.79850074,110550.0,110540.0,0.18688998]
[1756204270772,0.79850074,110550.0,110540.0,0.18885998]
[1756204272322,0.79850074,110550.0,110540.0,0.00793]
[1756204273031,0.79850074,110550.0,110540.0,0.00596]
[1756204273992,0.79850074,110550.0,110540.0,0.18688998]
[1756204274399,0.79850074,110550.0,110540.0,0.18901998]
[1756204274947,0.19735846,110550.0,110540.0,0.18901998]
[1756204275122,0.79850074,110550.0,110540.0,0.18901998]
[1756204277887,0.80063074,110550.0,110540.0,0.173009]
[1756204278636,0.61971713,110550.0,110540.0,0.173009]
[1756204278839,0.61758713,110550.0,110540.0,0.173009]
[1756204279840,0.79850074,110550.0,110540.0,0.176089]
[1756204283247,0.61758713,110550.0,110540.0,0.176089]
[1756204284642,0.79850074,110550.0,110540.0,0.176089]
[1756204286331,0.61758713,110550.0,110540.0,0.176089]
[1756204286914,0.60114228,110550.0,110540.0,0.176089]
[1756204287182,0.027202,110560.0,110550.0,0.18091361]
[1756204287309,4.80428028,110560.0,110550.0,0.18304361]
[1756204287536,4.80428028,110560.0,110550.0,0.18612361]
[1756204288476,0.98357572,110570.0,110560.0,0.18089725]
[1756204288855,5.18671372,110570.0,110560.0,0.33814725]
[1756204289028,4.94726999,110570.0,110560.0,0.33814725]
[1756204289243,5.13013087,110570.0,110560.0,0.33814725]
[1756204290132,5.13213087,110570.0,110560.0,0.33814725]
[1756204290347,5.13213087,110570.0,110560.0,0.33293725]
[1756204291152,4.72799888,110570.0,110560.0,0.33293725]
[1756204291346,5.32914116,110570.0,110560.0,0.33293725]
[1756204291893,5.34427092,110570.0,110560.0,0.33293725]
[1756204292068,5.00427092,110570.0,110560.0,0.33814725]
[1756204292347,4.22026776,110570.0,110560.0,0.33814725]
[1756204292589,4.82339004,110570.0,110560.0,0.33814725]
[1756204293581,5.00427092,110570.0,110560.0,0.33814725]
[1756204293784,4.82339004,110570.0,110560.0,0.33814725]
[1756204293992,4.22026776,110570.0,110560.0,0.33814725]
[1756204294188,4.82141004,110570.0,110560.0,0.33814725]
[1756204294456,4.80628028,110570.0,110560.0,0.33814725]
[1756204294889,4.205138,110570.0,110560.0,0.33814725]
[1756204296317,4.80628028,110570.0,110560.0,0.33814725]
[1756204296516,4.205138,110570.0,110560.0,0.33814725]
[1756204299662,4.80628028,110570.0,110560.0,0.33814725]
[1756204301030,4.205138,110570.0,110560.0,0.33814725]
[1756204301419,4.80628028,110570.0,110560.0,0.33814725]
[1756204301627,4.205138,110570.0,110560.0,0.33814725]
[1756204301835,4.80628028,110570.0,110560.0,0.33814725]
[1756204302186,4.205138,110570.0,110560.0,0.33814725]
[1756204302849,4.203138,110570.0,110560.0,0.33814725]
[1756204304289,4.203138,110570.0,110560.0,0.36534225]
[1756204304498,4.203138,110570.0,110560.0,0.43490225]
[1756204305538,4.203138,110570.0,110560.0,0.43590225]
[1756204305955,4.764e-05,110580.0,110570.0,0.18088088]
[1756204306185,0.60118992,110580.0,110570.0,0.18296088]
[1756204306411,0.60118992,110580.0,110570.0,0.18619088]
[1756204306640,0.60316992,110580.0,110570.0,0.18619088]
[1756204311183,0.60118992,110580.0,110570.0,0.18619088]
[1756204311644,0.60316992,110580.0,110570.0,0.33288088]
[1756204312933,0.60316992,110580.0,110570.0,0.33819088]
[1756204315284,0.60316992,110580.0,110570.0,0.33284088]
[1756204315285,0.78403445,110580.0,110570.0,0.33284088]
[1756204315482,0.60316992,110580.0,110570.0,0.33284088]
[1756204316893,0.00202764,110580.0,110570.0,0.33815088]
[1756204317096,0.60316992,110580.0,110570.0,0.33284088]
[1756204317303,0.60316992,110580.0,110570.0,0.33815088]
[1756204317452,0.60316992,110580.0,110570.0,0.33801557]
[1756204319380,0.60316992,110580.0,110570.0,0.33270557]
[1756204320122,0.60316992,110580.0,110570.0,0.33593557]
[1756204320304,0.60316992,110580.0,110570.0,0.33801557]
[1756204321892,0.60118992,110580.0,110570.0,0.33801557]
[1756204322484,0.60316992,110580.0,110570.0,0.33801557]
[1756204323122,0.60118992,110580.0,110570.0,0.33801557]
[1756204325520,0.4505735,110580.0,110570.0,0.33801557]
[1756204330229,4.764e-05,110580.0,110570.0,0.33801557]
[1756204330446,0.50004764,110580.0,110570.0,0.78854143]
[1756204330655,4.6537115,110580.0,110570.0,0.18605557]
[1756204330832,0.4505735,110580.0,110570.0,0.33801557]
[1756204331269,4.764e-05,110580.0,110570.0,0.33801557]
[1756204331457,0.4505735,110580.0,110570.0,0.33801557]
[1756204333496,0.4505735,110580.0,110570.0,0.33797557]
[1756204336382,0.4505735,110580.0,110570.0,0.18605557]
[1756204336586,0.4525535,110580.0,110570.0,0.18074557]
[1756204336807,0.4525535,110580.0,110570.0,0.33266557]
[1756204337670,0.4525535,110580.0,110570.0,0.33591557]
[1756204338306,0.4525535,110580.0,110570.0,0.33794557]
[1756204341791,0.4505735,110580.0,110570.0,0.33794557]
[1756204344405,4.764e-05,110580.0,110570.0,0.33794557]
[1756204344609,4.764e-05,110580.0,110570.0,0.78847143]
[1756204347596,4.764e-05,110580.0,110570.0,0.78947143]
[1756204348118,4.764e-05,110580.0,110570.0,0.79047143]
[1756204348759,4.764e-05,110580.0,110570.0,0.63855143]
[1756204348929,4.764e-05,110580.0,110570.0,0.79043143]
[1756204349709,4.764e-05,110580.0,110570.0,0.33990557]
[1756204349922,0.4525535,110580.0,110570.0,0.33990557]
[1756204350134,4.764e-05,110580.0,110570.0,0.33990557]
[1756204352568,4.764e-05,110580.0,110570.0,0.18802557]
[1756204352777,0.4525535,110580.0,110570.0,0.33990557]
[1756204352980,0.4525535,110580.0,110570.0,0.18802557]
[1756204353196,0.4525535,110580.0,110570.0,0.33990557]
[1756204354664,0.4525535,110580.0,110570.0,0.33899557]
[1756204356587,0.4525535,110580.0,110570.0,0.18711557]
[1756204356825,0.4525535,110580.0,110570.0,0.33371557]
[1756204358460,0.4525535,110580.0,110570.0,0.33899557]
[1756204360175,0.18315821,110590.0,110580.0,0.18086453]
[1756204360332,0.63368407,110590.0,110580.0,0.18086453]
[1756204360528,0.63190407,110590.0,110580.0,0.18086453]
[1756204361182,0.63190407,110590.0,110580.0,0.33270453]
[1756204364480,0.63190407,110590.0,110580.0,0.33270453]
[1756204368842,0.63190407,110590.0,110580.0,0.33570453]
[1756204369580,0.63190407,110590.0,110580.0,0.33270453]
[1756204370165,0.63190407,110590.0,110580.0,0.33570453]
[1756204370592,0.18084821,110590.0,110580.0,0.18601453]
[1756204370799,0.18137821,110590.0,110580.0,0.33785453]
[1756204370988,0.18084821,110590.0,110580.0,0.33785453]
[1756204371223,0.63137407,110590.0,110580.0,0.33785453]
[1756204372462,0.63190407,110590.0,110580.0,0.33785453]
[1756204378839,0.63190407,110590.0,110580.0,0.33570453]
[1756204379219,0.63190407,110590.0,110580.0,0.33785453]
[1756204380223,0.63190407,110590.0,110580.0,0.33781453]
[1756204380422,0.63190407,110590.0,110570.0,0.24939557]
[1756204380687,0.45052586,110580.0,110570.0,0.25239557]
[1756204380841,0.45052586,110580.0,110570.0,0.40634557]
[1756204381642,0.45052586,110580.0,110570.0,0.43353657]
[1756204382585,0.45052586,110580.0,110570.0,0.28173657]
[1756204382784,0.45052586,110580.0,110570.0,0.43353657]
[1756204383671,0.45052586,110580.0,110570.0,0.43453657]
[1756204384032,0.45052586,110580.0,110570.0,0.43553657]
[1756204385585,1.08244625,110580.0,110570.0,0.43338657]
[1756204385805,1.08244625,110580.0,110570.0,0.43038657]
[1756204386211,1.08244625,110580.0,110570.0,0.27858657]
[1756204386415,1.08244625,110580.0,110570.0,0.43139188]
[1756204387703,1.09942525,110580.0,110570.0,0.250511]
[1756204387917,1.09942525,110580.0,110570.0,0.43139188]
[1756204388075,1.09942376,110580.0,110570.0,0.43139188]
[1756204388495,1.09942376,110580.0,110570.0,0.250511]
[1756204388752,1.09942368,110580.0,110570.0,0.43139188]
[1756204389306,1.09942368,110580.0,110570.0,0.250511]
[1756204389709,1.09942368,110580.0,110570.0,0.180951]
[1756204390965,5.30256168,110580.0,110570.0,0.029191]
[1756204391185,5.30289168,110580.0,110570.0,0.180951]
[1756204391398,5.33008768,110580.0,110570.0,0.180951]
[1756204391573,5.33008768,110580.0,110570.0,0.15376]
[1756204392177,5.32975768,110580.0,110570.0,0.15376]
[1756204394682,5.32974924,110580.0,110570.0,0.15376]
[1756204395163,5.33007924,110580.0,110570.0,0.15376]
[1756204395381,5.32974924,110580.0,110570.0,0.15376]
[1756204397777,5.3297466,110580.0,110570.0,0.15376]
[1756204398803,5.4815066,110580.0,110570.0,0.15376]
[1756204399781,5.3297466,110580.0,110570.0,0.15376]
[1756204399982,4.42869488,110580.0,110570.0,0.15376]
[1756204400110,5.3297466,110580.0,110570.0,0.15376]
[1756204400305,5.3297466,110580.0,110570.0,0.002]
[1756204400527,5.3297466,110580.0,110570.0,0.15376]
[1756204401422,5.3297466,110580.0,110570.0,0.15677]
[1756204401628,5.3297466,110580.0,110570.0,0.1589]
[1756204402924,5.3297466,110580.0,110570.0,0.33978088]
[1756204403154,5.3297466,110580.0,110570.0,0.1589]
[1756204405050,5.3297466,110580.0,110570.0,0.15677]
[1756204405252,5.4815066,110580.0,110570.0,0.15677]
[1756204407320,5.48150617,110580.0,110570.0,0.15677]
[1756204407880,5.48150617,110580.0,110570.0,0.15376]
[1756204408652,5.48150617,110580.0,110570.0,0.15677]
[1756204409902,5.48150617,110580.0,110570.0,0.00501]
[1756204410074,5.48150617,110580.0,110570.0,0.002]
[1756204414218,5.48150617,110580.0,110570.0,0.00501]
[1756204415887,5.48150617,110580.0,110570.0,0.002]
[1756204417082,5.48151648,110580.0,110570.0,0.002]
[1756204417865,5.48151787,110580.0,110570.0,0.002]
[1756204418412,5.48151787,110580.0,110570.0,0.00501]
[1756204419357,5.48151787,110580.0,110570.0,0.002]
[1756204426686,5.48152212,110580.0,110570.0,0.002]
[1756204427243,5.48152213,110580.0,110570.0,0.002]
[1756204428350,5.48152213,110580.0,110570.0,0.00514]
[1756204432795,5.48152213,110580.0,110570.0,0.0071]
[1756204436301,4.24731648,110580.0,110570.0,0.18798088]
[1756204436627,4.87870687,110580.0,110570.0,0.18798088]
[1756204436831,5.32923273,110580.0,110570.0,0.18785188]
[1756204439112,5.1483682,110580.0,110570.0,0.18785188]
[1756204439324,5.32923273,110580.0,110570.0,0.18785188]
[1756204439660,5.32923066,110580.0,110570.0,0.18785188]
[1756204441393,5.30203466,110580.0,110570.0,0.18785188]
[1756204442461,5.08815916,110580.0,110570.0,0.18785188]
[1756204442951,4.18710744,110580.0,110570.0,0.18785188]
[1756204443161,5.08815916,110580.0,110570.0,0.18785188]
[1756204444053,4.00624291,110580.0,110570.0,0.18785188]
[1756204444256,0.45901677,110580.0,110570.0,0.18785188]
[1756204445206,0.45901422,110580.0,110570.0,0.18785188]
[1756204447076,0.90954008,110580.0,110570.0,0.18785188]
[1756204448138,0.00848836,110580.0,110570.0,0.18785188]
[1756204448348,4.94827786,110580.0,110570.0,0.18785188]
[1756204448599,0.45052586,110580.0,110570.0,0.21504488]
[1756204448804,0.45052586,110580.0,110570.0,0.22783945]
[1756204449449,0.45052586,110580.0,110570.0,0.21504488]
[1756204451710,0.45052586,110580.0,110570.0,0.22803594]
[1756204451859,0.45052586,110580.0,110570.0,0.21504488]
[1756204455404,0.52084866,110590.0,110580.0,0.18086453]
[1756204455615,4.52760992,110590.0,110580.0,0.18086453]
[1756204455823,4.52760992,110590.0,110580.0,0.33242453]
[1756204456716,4.97813578,110590.0,110580.0,0.33242453]
[1756204457183,4.97813578,110590.0,110580.0,0.33233908]
[1756204459782,4.79728712,110590.0,110580.0,0.33437908]
[1756204459966,4.79728712,110590.0,110580.0,0.33751908]
[1756204460256,4.97813529,110590.0,110580.0,0.33751908]
[1756204465219,4.97813529,110590.0,110580.0,0.33547908]
[1756204465779,4.97813529,110590.0,110580.0,0.33751908]
[1756204466031,4.97813529,110590.0,110580.0,0.33547908]
[1756204466995,4.97813529,110590.0,110580.0,0.33751908]
[1756204467197,4.97813529,110590.0,110580.0,0.33547908]
[1756204472707,4.97814246,110590.0,110580.0,0.33547908]
[1756204474096,4.97814341,110590.0,110580.0,0.33751908]
[1756204475003,4.9781441,110590.0,110580.0,0.33751908]
[1756204478231,4.9781441,110590.0,110580.0,0.33547908]
[1756204479805,0.00848807,110590.0,110580.0,0.78804494]
[1756204480003,0.45901393,110590.0,110580.0,0.33751908]
[1756204480207,0.45901393,110590.0,110580.0,0.36470908]
[1756204480405,0.45052586,110590.0,110580.0,0.40635302]
[1756204481171,0.45052586,110590.0,110580.0,0.40735302]
[1756204481987,0.45052586,110590.0,110580.0,0.25579302]
[1756204482189,0.45052586,110590.0,110580.0,0.40723302]
[1756204482780,0.45052586,110590.0,110580.0,0.40823302]
[1756204487301,0.45105586,110590.0,110580.0,0.25679302]
[1756204487412,0.45105586,110590.0,110580.0,0.40305302]
[1756204487773,0.45105586,110590.0,110580.0,0.40621302]
[1756204487951,0.45105586,110590.0,110580.0,0.40824302]
[1756204488158,0.45052586,110590.0,110580.0,0.40824302]
[1756204491504,0.63135785,110600.0,110590.0,0.18084817]
[1756204491821,5.08869347,110600.0,110590.0,0.18084817]
[1756204492575,5.08869347,110600.0,110590.0,0.33224817]
[1756204493165,5.08021334,110600.0,110590.0,0.33224817]
[1756204493304,5.08869347,110600.0,110590.0,0.33224817]
[1756204493498,4.87416753,110600.0,110590.0,0.33224817]
[1756204493909,4.18764175,110600.0,110590.0,0.33224817]
[1756204494108,5.08869347,110600.0,110590.0,0.33224817]
[1756204494310,5.08869359,110600.0,110590.0,0.33224817]
[1756204497467,5.08869359,110600.0,110590.0,0.33540817]
[1756204498697,5.08869359,110600.0,110580.0,0.40417302]
[1756204499031,0.79181573,110600.0,110590.0,0.18084817]
[1756204499177,4.63816773,110600.0,110590.0,0.18084817]
[1756204500191,5.08869359,110600.0,110590.0,0.18084817]
[1756204501596,5.08869359,110600.0,110580.0,0.21112908]
[1756204501798,0.79181694,110600.0,110590.0,0.1514]
[1756204502028,4.78956894,110600.0,110590.0,0.1514]
[1756204502433,4.78956894,110600.0,110590.0,0.33224817]
[1756204503063,5.2400948,110600.0,110590.0,0.1514]
[1756204503603,5.2400948,110600.0,110590.0,0.33224817]
[1756204504009,5.0886948,110600.0,110590.0,0.33224817]
[1756204505278,5.0886948,110600.0,110590.0,0.1514]
[1756204506112,5.2400548,110600.0,110590.0,0.33224817]
[1756204508040,5.0886948,110600.0,110590.0,0.33743817]
[1756204508332,4.18764308,110600.0,110590.0,0.33743817]
[1756204508554,5.0886948,110600.0,110590.0,0.33743817]
[1756204508977,5.0886948,110600.0,110590.0,0.33540817]
[1756204510727,5.0886948,110600.0,110590.0,0.33743817]
[1756204511537,5.08870286,110600.0,110590.0,0.33743817]
[1756204511736,4.33848097,110600.0,110590.0,0.33743817]
[1756204511968,4.78900683,110600.0,110590.0,0.33743817]
[1756204513680,4.63764683,110600.0,110590.0,0.33743817]
[1756204515402,4.18712097,110600.0,110590.0,0.33743817]
[1756204515599,5.08817269,110600.0,110590.0,0.33743817]
[1756204516042,5.08870269,110600.0,110590.0,0.33743817]
[1756204517213,5.08817269,110600.0,110590.0,0.33743817]
[1756204517453,4.00628915,110600.0,110590.0,0.33743817]
[1756204517798,4.45681501,110600.0,110590.0,0.33743817]
[1756204521424,0.45906301,110600.0,110590.0,0.33743817]
[1756204522701,1.09095069,110600.0,110590.0,0.33224817]
[1756204523261,1.09095069,110600.0,110590.0,0.33531817]
[1756204523585,1.24227069,110600.0,110590.0,0.33224817]
[1756204524354,1.09095069,110600.0,110590.0,0.18084817]
[1756204524561,1.09095069,110600.0,110590.0,0.33216817]
[1756204524772,1.24227069,110600.0,110580.0,0.25134637]
[1756204525084,0.79174483,110600.0,110590.0,0.33216817]
[1756204526126,1.24227069,110600.0,110590.0,0.33216817]
[1756204528255,1.24227069,110600.0,110590.0,0.15132]
[1756204528458,1.24227069,110600.0,110590.0,0.33216817]
[1756204530632,1.23378117,110600.0,110590.0,0.33216817]
[1756204530831,1.24227134,110600.0,110590.0,0.33216817]
[1756204531868,1.24227138,110600.0,110590.0,0.33216817]
[1756204532222,1.24227138,110600.0,110590.0,0.33523817]
[1756204532718,1.24227138,110600.0,110590.0,0.33216817]
[1756204532854,0.18084817,110590.0,110580.0,0.21111645]
[1756204533054,5.2399921,110590.0,110580.0,0.17851]
[1756204533268,5.2399921,110590.0,110580.0,0.15132]
[1756204534329,4.78946624,110590.0,110580.0,0.15132]
[1756204534538,4.78946624,110590.0,110570.0,0.37150792]
[1756204534813,3.997752,110580.0,110570.0,0.37150792]
[1756204534979,4.17861653,110580.0,110570.0,0.37150792]
[1756204535186,0.18086453,110580.0,110570.0,0.37367792]
[1756204535345,0.63139039,110580.0,110570.0,0.37367792]
[1756204535949,0.45052586,110580.0,110570.0,0.37567792]
[1756204536135,0.33216817,110590.0,110570.0,0.37867792]
[1756204536336,3.997752,110580.0,110570.0,0.37867792]
[1756204537217,3.997752,110580.0,110570.0,0.37667792]
[1756204538012,3.992752,110580.0,110570.0,0.37667792]
[1756204538680,3.992752,110580.0,110570.0,0.37767792]
[1756204539374,3.992752,110580.0,110570.0,0.22535792]
[1756204539578,3.992752,110580.0,110570.0,0.37867792]
[1756204539975,3.992752,110580.0,110570.0,0.82920378]
[1756204540197,3.992752,110580.0,110570.0,0.67788378]
[1756204540392,3.992752,110580.0,110570.0,0.82920378]
[1756204540596,3.992752,110580.0,110570.0,0.67788378]
[1756204540798,3.992752,110580.0,110570.0,0.82920378]
[1756204541586,3.992752,110580.0,110570.0,0.67788378]
[1756204541796,3.992752,110580.0,110570.0,0.82920378]
[1756204543476,4.44327786,110580.0,110570.0,0.37867792]
[1756204543807,0.45052586,110580.0,110570.0,0.37867792]
[1756204544173,0.33216817,110590.0,110580.0,0.18086453]
[1756204544371,4.78445559,110590.0,110580.0,0.18086453]
[1756204544567,4.81164859,110590.0,110580.0,0.18086453]
[1756204545360,4.81164859,110590.0,110580.0,0.18186453]
[1756204545566,4.81164859,110590.0,110580.0,0.18286453]
[1756204547212,5.26217445,110590.0,110580.0,0.002]
[1756204547408,5.69396647,110590.0,110580.0,0.002]
[1756204549913,5.68548691,110590.0,110580.0,0.002]
[1756204550139,5.69396604,110590.0,110580.0,0.002]
[1756204550925,5.69396607,110590.0,110580.0,0.002]
[1756204551803,5.69363607,110590.0,110580.0,0.002]
[1756204552011,5.69251607,110590.0,110580.0,0.002]
[1756204552571,5.69284607,110590.0,110580.0,0.002]
[1756204552772,5.69251607,110590.0,110580.0,0.002]
[1756204553612,5.744175,110590.0,110580.0,0.002]
[1756204553817,4.84312328,110590.0,110580.0,0.002]
[1756204554019,5.744175,110590.0,110580.0,0.002]
[1756204554230,5.69284607,110590.0,110580.0,0.002]
[1756204556314,5.69251607,110590.0,110580.0,0.002]
[1756204557522,5.54119607,110590.0,110580.0,0.002]
[1756204557867,5.69247607,110590.0,110580.0,0.002]
[1756204560252,5.69247833,110590.0,110580.0,0.002]
[1756204562194,4.79142661,110590.0,110580.0,0.002]
[1756204562554,5.69247833,110590.0,110580.0,0.002]
[1756204565113,5.6924813,110590.0,110580.0,0.002]
[1756204568268,5.68399691,110590.0,110580.0,0.002]
[1756204568489,5.69248142,110590.0,110580.0,0.002]
[1756204569538,5.51275325,110590.0,110580.0,0.002]
[1756204569748,5.69360142,110590.0,110580.0,0.002]
[1756204574565,5.80249573,110590.0,110580.0,0.002]
[1756204575744,5.71105044,110590.0,110580.0,0.002]
[1756204576099,5.71138044,110590.0,110580.0,0.002]
[1756204576710,5.71105044,110590.0,110580.0,0.002]
[1756204577949,5.71105429,110590.0,110580.0,0.002]
[1756204578536,5.71105451,110590.0,110580.0,0.002]
[1756204579543,5.7306126,110590.0,110580.0,0.002]
[1756204581378,5.73061329,110590.0,110580.0,0.002]
[1756204583844,5.7110552,110590.0,110580.0,0.002]
[1756204584049,5.73061598,110590.0,110580.0,0.002]
[1756204584870,5.82206127,110590.0,110580.0,0.002]
[1756204585290,5.73061598,110590.0,110580.0,0.002]
[1756204587909,5.76886875,110590.0,110580.0,0.002]
[1756204588107,5.78301913,110590.0,110580.0,0.002]
[1756204592677,5.57650745,110590.0,110580.0,0.002]
[1756204592885,6.63375613,110590.0,110580.0,0.002]
[1756204593089,6.63375031,110590.0,110580.0,0.002]
[1756204593295,6.62738584,110590.0,110580.0,0.002]
[1756204594998,6.71883113,110590.0,110580.0,0.002]
[1756204596870,6.72519513,110590.0,110580.0,0.002]
[1756204597507,6.72519443,110590.0,110580.0,0.002]
[1756204597712,6.72519438,110590.0,110580.0,0.002]
[1756204597891,7.20422679,110590.0,110580.0,0.002]
[1756204598685,7.20422679,110590.0,110580.0,0.001]
[1756204599091,0.52088088,110570.0,110560.0,0.00302]
[1756204599390,6.51713889,110570.0,110560.0,0.00302]
[1756204599591,6.60858418,110570.0,110560.0,0.00511]
[1756204599797,6.63578418,110570.0,110560.0,0.00511]
[1756204600171,6.63578418,110570.0,110560.0,0.00711]
[1756204601959,6.63578418,110570.0,110560.0,0.01011]
[1756204604841,6.54433889,110570.0,110560.0,0.01011]
[1756204607934,6.54433244,110570.0,110560.0,0.01011]
[1756204612879,6.54433244,110570.0,110560.0,0.00811]
[1756204613302,6.54433244,110570.0,110560.0,0.00611]
[1756204613722,6.54433244,110570.0,110560.0,0.00711]
[1756204615497,6.63195713,110570.0,110560.0,0.00711]
[1756204615930,6.54433244,110570.0,110560.0,0.00711]
[1756204617580,6.54345244,110570.0,110560.0,0.00711]
[1756204620250,6.54345727,110570.0,110560.0,0.00711]
[1756204620985,5.64236555,110570.0,110560.0,0.00711]
[1756204621166,6.09289141,110570.0,110560.0,0.00711]
[1756204624405,5.64236555,110570.0,110560.0,0.00711]
[1756204624821,6.54341727,110570.0,110560.0,0.00711]
[1756204625495,6.54342221,110570.0,110560.0,0.00711]
[1756204625955,6.09289635,110570.0,110560.0,0.00711]
[1756204626939,6.09289635,110570.0,110560.0,0.00502]
[1756204627310,6.11246371,110570.0,110560.0,0.00502]
[1756204627515,6.203909,110570.0,110560.0,0.00502]
[1756204628780,6.11246371,110570.0,110560.0,0.00502]
[1756204629135,6.11246371,110570.0,110560.0,0.00519]
[1756204631099,6.11246371,110570.0,110560.0,0.00716]
[1756204631458,6.11246805,110570.0,110560.0,0.00716]
[1756204632453,5.66194219,110570.0,110560.0,0.00716]
[1756204632657,6.11246805,110570.0,110560.0,0.00716]
[1756204634821,5.88321873,110570.0,110560.0,0.00716]
[1756204635021,5.85515844,110570.0,110560.0,0.00716]
[1756204635223,5.86365138,110570.0,110560.0,0.00716]
[1756204635436,6.04453226,110570.0,110560.0,0.00716]
[1756204639820,5.89333226,110570.0,110560.0,0.00716]
[1756204640036,6.04449226,110570.0,110560.0,0.00716]
[1756204641524,6.04449247,110570.0,110560.0,0.00716]
[1756204644390,5.44280661,110570.0,110560.0,0.00716]
[1756204644600,6.04449247,110570.0,110560.0,0.00716]
[1756204647923,6.0444919,110570.0,110560.0,0.00716]
[1756204653048,6.06405906,110570.0,110560.0,0.00716]
[1756204657136,5.6135332,110570.0,110560.0,0.00716]
[1756204657352,6.06405906,110570.0,110560.0,0.00716]
[1756204659154,6.06405906,110570.0,110560.0,0.002]
[1756204659401,6.51458492,110570.0,110560.0,0.002]
[1756204660156,6.51458492,110570.0,110560.0,0.007]
[1756204660922,6.06405906,110570.0,110560.0,0.007]
[1756204661735,5.7733075,110570.0,110560.0,0.007]
[1756204662667,6.1133075,110570.0,110560.0,0.007]
[1756204664215,6.11330807,110570.0,110560.0,0.007]
[1756204665177,6.1133081,110570.0,110560.0,0.007]
[1756204665352,5.7733081,110570.0,110560.0,0.007]
[1756204665561,6.56383396,110570.0,110560.0,0.007]
[1756204673235,0.57614122,110570.0,110560.0,0.18789725]
[1756204673408,0.63733904,110570.0,110560.0,0.18789725]
[1756204673629,0.45901904,110570.0,110560.0,0.18789725]
[1756204673968,0.45901796,110570.0,110560.0,0.33901725]
[1756204674164,0.45901796,110570.0,110560.0,0.36621325]
[1756204674792,0.45901219,110570.0,110560.0,0.36621325]
[1756204675204,0.45052586,110570.0,110560.0,0.36621325]
[1756204678517,0.78251105,110580.0,110570.0,0.18088088]
[1756204678727,1.09039455,110580.0,110570.0,0.18587088]